bitfinex-derivatives/quotes_ETHF0:USTF0_20251225
["timestamp","ask_amount","ask_price","bid_price","bid_amount"]
[1766653509556,3.415,2929.8,2928.9,2.138e-05]
[1766653509754,0.95091138,2929.7,2928.9,2.138e-05]
[1766653509959,0.95091138,2929.6,2928.5,0.00277059]
[1766653510152,7.69670138,2929.5,2928.5,0.00277059]
[1766653510358,13.07541913,2929.4,2928.2,3.415]
[1766653510666,1.12138073,2929.3,2928.2,3.415]
[1766653510861,0.95058073,2929.2,2928.2,3.415]
[1766653511166,3.415,2929.1,2928.2,3.415]
[1766653511366,3.415,2929.1,2928.2,3.41880754]
[1766653512062,3.415,2929.1,2928.4,0.00512138]
[1766653512966,3.415,2929.1,2928.4,2.138e-05]
[1766653516366,3.415,2929.1,2927.9,4.74]
[1766653516367,3.415,2929.1,2927.5,1.22340468]
[1766653516668,0.17084,2928.8,2927.4,3.416]
[1766653516872,9.544,2928.7,2927.4,3.416]
[1766653517472,0.00512138,2928.3,2927.8,0.00341424]
[1766653517776,3.416,2928.2,2927.8,0.00341424]
[1766653519171,0.00512138,2928.3,2927.4,3.41900785]
[1766653519380,3.42112138,2928.3,2927.4,3.41900785]
[1766653529585,3.42112138,2928.3,2927.4,0.00300785]
[1766653529985,0.00512138,2928.3,2927.4,0.00300785]
[1766653530185,9.544,2928.2,2927.4,0.00300785]
[1766653530387,9.544,2928.2,2927.5,3.416]
[1766653533496,0.00512138,2928.3,2927.5,2.733]
[1766653533695,2.733,2928.2,2927.5,2.733]
[1766653537495,2.733,2928.2,2927.4,0.00300785]
[1766653550001,2.73549782,2928.7,2927.4,0.00300785]
[1766653551001,0.00512138,2928.3,2927.8,0.00512138]
[1766653551298,0.00512138,2928.3,2927.9,2.733]
[1766653561301,2.138e-05,2928.3,2927.9,2.733]
[1766653561507,2.73549782,2928.7,2927.9,2.733]
[1766653561807,2.73549782,2928.7,2927.8,2.73812138]
[1766653562300,2.73549782,2928.7,2927.4,0.00300785]
[1766653562707,2.73549782,2928.7,2927.5,2.733]
[1766653563306,0.00512138,2928.4,2927.8,0.00512138]
[1766653563506,2.733,2928.3,2927.8,0.00512138]
[1766653570712,2.733,2928.3,2927.8,2.138e-05]
[1766653570908,2.733,2928.3,2927.5,2.733]
[1766653576318,0.00512138,2928.4,2927.5,2.733]
[1766653596943,0.00512138,2928.4,2927.4,0.00300785]
[1766653597242,0.00512138,2928.4,2927.5,2.733]
[1766653607356,6.83812138,2928.4,2927.4,0.00300785]
[1766653607560,0.17086,2928.3,2927.4,0.00300785]
[1766653607853,8.853,2928.2,2927.4,0.00300785]
[1766653608850,8.853,2928.2,2926.9,2.733]
[1766653608851,9.02387,2928.2,2926.9,2.733]
[1766653609361,1.12025466,2928.1,2926.6,2.733]
[1766653609547,6.119,2928.0,2926.6,2.733]
[1766653609747,2.733,2927.9,2926.6,2.733]
[1766653609956,2.733,2927.9,2926.6,2.73604308]
[1766653611756,2.733,2927.9,2926.7,2.733]
[1766653619364,2.733,2927.8,2926.7,2.733]
[1766653625769,1.17088,2928.1,2926.7,2.733]
[1766653625968,2.734,2928.0,2926.7,2.733]
[1766653626473,1.17088,2928.1,2926.7,2.733]
[1766653626670,2.734,2928.0,2926.7,2.733]
[1766653631374,1.0,2928.1,2926.7,2.733]
[1766653631577,3.734,2928.1,2926.7,2.733]
[1766653635983,1.0,2928.1,2926.7,2.733]
[1766653653195,3.733,2928.1,2926.7,2.733]
[1766653655393,3.733,2928.1,2926.7,1.22746386]
[1766653655695,3.733,2928.1,2926.8,2.733]
[1766653656391,0.95887719,2928.0,2926.8,2.733]
[1766653656590,3.733,2928.1,2926.8,2.733]
[1766653656790,0.95887304,2928.0,2926.8,2.733]
[1766653656990,3.733,2928.1,2926.8,2.733]
[1766653657190,0.95918585,2928.0,2926.8,2.733]
[1766653657391,3.733,2928.1,2926.8,2.733]
[1766653657592,0.95898023,2928.0,2926.8,2.733]
[1766653657790,3.733,2928.1,2926.8,2.733]
[1766653657991,0.95898101,2928.0,2926.8,2.733]
[1766653658184,3.733,2928.1,2926.8,2.733]
[1766653658385,0.95878922,2928.0,2926.8,2.733]
[1766653658688,3.733,2928.1,2926.8,2.733]
[1766653658889,0.95878956,2928.0,2926.8,2.733]
[1766653659093,3.733,2928.1,2926.8,2.733]
[1766653661692,1.0,2928.1,2926.8,2.733]
[1766653661902,2.733,2928.0,2926.8,2.733]
[1766653662196,1.0,2928.1,2926.8,2.733]
[1766653662398,3.733,2928.1,2926.8,2.733]
[1766653666703,3.733,2928.1,2926.6,0.00304308]
[1766653666898,3.733,2928.1,2926.7,7.411]
[1766653670801,1.0,2928.1,2926.7,7.411]
[1766653671008,2.733,2928.0,2926.7,7.411]
[1766653672506,1.0,2928.1,2926.7,7.411]
[1766653675614,1.0,2928.1,2926.7,7.58195]
[1766653678212,1.0,2928.1,2926.8,0.17095]
[1766653678429,1.0,2928.1,2927.0,0.17094]
[1766653678635,1.0,2928.1,2927.1,2.733]
[1766653678837,1.0,2928.1,2927.2,5.098]
[1766653680430,1.0,2928.1,2927.0,1.41440835]
[1766653680735,1.0,2928.1,2927.1,8.742]
[1766653684037,1.0,2928.2,2927.1,8.742]
[1766653695147,2.73812138,2928.4,2927.1,8.742]
[1766653700360,2.73812138,2928.4,2927.1,8.91293]
[1766653700658,0.00512138,2928.4,2927.1,8.91293]
[1766653710073,0.00512138,2928.4,2927.2,8.74]
[1766653710364,2.73812138,2928.4,2927.1,0.17093]
[1766653710568,2.73812138,2928.4,2927.2,8.74]
[1766653712279,0.00512138,2928.4,2927.2,8.74]
[1766653715481,2.138e-05,2928.4,2927.2,8.91092]
[1766653715974,2.138e-05,2928.4,2927.5,0.1709]
[1766653716180,0.00249782,2928.7,2927.6,2.733]
[1766653716380,0.00249782,2928.7,2927.7,6.006]
[1766653717281,2.138e-05,2928.5,2927.9,0.00512138]
[1766653717583,2.138e-05,2928.5,2928.0,2.733]
[1766653721076,0.00249782,2928.7,2928.0,2.733]
[1766653721984,0.00512138,2928.6,2928.0,2.733]
[1766653722389,1.22907846,2930.0,2928.0,2.733]
[1766653722582,9.79550812,2929.6,2928.0,2.733]
[1766653722888,8.84,2929.6,2928.0,2.733]
[1766653723390,0.00512138,2929.1,2928.0,2.733]
[1766653729886,0.00512138,2929.1,2927.9,0.00512138]
[1766653730083,0.00512138,2929.1,2928.0,4.878]
[1766653730282,0.00512138,2929.1,2928.1,8.738]
[1766653732386,2.733,2929.0,2928.1,8.738]
[1766653734091,2.733,2929.0,2927.9,0.00512138]
[1766653734597,2.733,2929.0,2928.0,2.733]
[1766653749705,0.00512138,2929.1,2928.0,2.733]
[1766653749907,2.73812138,2929.1,2928.0,2.733]
[1766653752606,2.73812138,2929.1,2927.9,0.00512138]
[1766653752814,2.73812138,2929.1,2928.0,2.733]
[1766653755016,0.00512138,2929.1,2928.0,2.733]
[1766653755518,2.73812138,2929.1,2928.0,2.733]
[1766653756719,2.73812138,2929.1,2928.0,3.733]
[1766653764829,2.73812138,2929.1,2928.0,1.0]
[1766653765031,2.73812138,2929.1,2928.1,2.732]
[1766653780555,0.00512138,2929.1,2928.1,2.732]
[1766653780759,2.732,2929.5,2928.1,2.732]
[1766653781860,0.00512138,2929.1,2928.1,2.732]
[1766653782453,0.00512138,2929.1,2928.0,1.17088]
[1766653782762,0.00512138,2929.1,2928.1,5.663]
[1766653783750,0.00512138,2929.1,2928.0,1.0]
[1766653783950,0.00512138,2929.1,2928.1,8.734]
[1766653791069,0.00512138,2929.1,2928.1,9.734]
[1766653791263,0.00512138,2929.1,2928.2,6.001]
[1766653791467,0.00512138,2929.1,2928.2,8.733]
[1766653801069,0.00512138,2929.1,2928.1,1.0]
[1766653801367,4.16312138,2929.1,2928.1,1.0]
[1766653801874,0.95171438,2929.0,2928.1,1.0]
[1766653802067,2.732,2928.9,2928.1,1.0]
[1766653804878,2.732,2928.9,2927.9,0.00512138]
[1766653807180,0.00512138,2929.1,2927.9,0.00512138]
[1766653807380,6.817,2929.0,2927.9,0.00512138]
[1766653807882,6.817,2929.0,2928.0,2.733]
[1766653812888,6.817,2929.0,2927.9,0.00512138]
[1766653823594,8.83,2928.9,2927.9,0.00512138]
[1766653824099,0.00512138,2929.1,2927.9,0.00512138]
[1766653824393,9.78111604,2929.0,2927.9,0.00512138]
[1766653824587,8.83,2929.0,2927.9,0.00512138]
[1766653828408,0.95193672,2928.9,2927.9,0.00512138]
[1766653828703,8.83,2929.0,2927.9,0.00512138]
[1766653828907,0.95193672,2928.9,2927.9,0.00512138]
[1766653829106,8.83,2929.0,2927.9,0.00512138]
[1766653829404,0.95195324,2928.9,2927.9,0.00512138]
[1766653829602,8.83,2929.0,2927.9,0.00512138]
[1766653829801,0.95228797,2928.9,2927.9,0.00512138]
[1766653830005,8.83,2929.0,2927.9,0.00512138]
[1766653830206,0.95228797,2928.9,2927.9,0.00512138]
[1766653830408,8.83,2929.0,2927.9,2.138e-05]
[1766653830705,0.95230164,2928.9,2927.9,2.138e-05]
[1766653831003,8.83,2929.0,2927.9,2.138e-05]
[1766653831203,0.95230119,2928.9,2927.9,2.138e-05]
[1766653831408,8.83,2929.0,2927.9,2.138e-05]
[1766653831602,0.95275907,2928.9,2927.9,2.138e-05]
[1766653831803,8.83,2929.0,2927.9,2.138e-05]
[1766653832002,0.95275908,2928.9,2927.9,2.138e-05]
[1766653832198,8.83,2929.0,2927.9,2.138e-05]
[1766653832401,0.95276899,2928.9,2927.9,2.138e-05]
[1766653832603,0.95276899,2928.8,2927.5,2.733]
[1766653832803,2.733,2928.7,2927.5,2.733]
[1766653833610,2.733,2928.7,2927.8,0.00512138]
[1766653835808,2.733,2928.7,2927.5,2.733]
[1766653835809,0.95296944,2928.6,2927.5,2.733]
[1766653836111,6.096,2928.5,2927.5,2.733]
[1766653836310,2.733,2928.4,2927.5,2.733]
[1766653836612,2.733,2928.4,2927.7,0.00512138]
[1766653836806,2.733,2928.4,2926.6,0.17400308]
[1766653837012,2.733,2928.4,2926.7,8.733]
[1766653837811,2.733,2928.4,2927.3,0.00512138]
[1766653854017,2.733,2928.4,2927.3,2.138e-05]
[1766653860026,1.122717,2928.3,2927.3,2.138e-05]
[1766653860216,0.951857,2928.2,2927.3,2.138e-05]
[1766653860418,2.733,2928.1,2927.3,2.138e-05]
[1766653880137,0.95569788,2928.0,2926.6,0.00304308]
[1766653880335,7.04869788,2927.9,2926.6,0.00304308]
[1766653880550,3.68969788,2927.8,2926.6,0.00304308]
[1766653880844,0.95569788,2927.7,2926.6,0.00304308]
[1766653881232,0.00512138,2927.4,2926.6,0.00304308]
[1766653881442,2.734,2927.3,2926.6,0.00304308]
[1766653881739,2.734,2927.3,2926.3,2.734]
[1766653882441,8.827,2927.3,2926.3,2.734]
[1766653882640,8.827,2927.3,2926.3,0.00287124]
[1766653884335,8.827,2927.3,2926.0,2.734]
[1766653884532,0.00857001,2927.4,2926.0,2.734]
[1766653884736,2.845,2927.3,2926.0,2.734]
[1766653885036,0.00857001,2927.4,2926.0,2.734]
[1766653885037,2.734,2927.2,2926.0,3.89634684]
[1766653885242,2.734,2927.2,2926.0,3.89950089]
[1766653887548,0.00857001,2927.4,2926.0,3.89950089]
[1766653887746,2.74257001,2927.4,2926.0,3.89950089]
[1766653888040,0.00857001,2927.4,2926.0,3.89950089]
[1766653888240,0.17088,2928.0,2926.1,6.835]
[1766653888453,2.734,2927.9,2926.1,6.835]
[1766653888838,0.17088,2928.0,2926.1,6.835]
[1766653889038,2.734,2927.9,2926.1,6.835]
[1766653889240,0.00512138,2927.3,2926.7,0.00512138]
[1766653889439,0.00512138,2927.3,2926.8,2.734]
[1766653889846,0.00512138,2927.3,2926.7,0.00512138]
[1766653890047,0.00512138,2927.3,2926.8,2.734]
[1766653890643,0.00512138,2927.3,2926.7,0.00512138]
[1766653890846,0.00512138,2927.3,2926.8,2.734]
[1766653892546,2.73912138,2927.3,2926.7,0.00512138]
[1766653892746,2.73912138,2927.3,2926.1,6.0]
[1766653892947,2.73912138,2927.3,2926.2,2.734]
[1766653897851,0.00512138,2927.3,2926.2,2.734]
[1766653898057,2.734,2927.2,2926.2,2.734]
[1766653901258,2.3754,2927.2,2926.2,2.734]
[1766653904559,0.00512138,2927.3,2926.2,2.734]
[1766653917983,1.58542138,2927.3,2926.2,2.734]
[1766653937590,1.58542138,2927.3,2926.2,2.90498]
[1766653943004,0.00512138,2927.3,2926.2,2.90498]
[1766653946906,1.5799,2927.2,2926.3,15.567]
[1766653952216,1.5799,2927.2,2926.2,0.17098]
[1766653952408,1.5799,2927.2,2926.3,8.731]
[1766653956311,1.5799,2927.2,2926.4,8.731]
[1766653957114,1.5799,2927.2,2926.5,8.731]
[1766653960620,1.5799,2927.2,2926.3,1.17378241]
[1766653960918,1.5799,2927.2,2926.4,8.731]
[1766653965726,1.5799,2927.2,2926.5,5.997]
[1766653966024,1.5799,2927.2,2926.5,8.731]
[1766653966625,1.5799,2927.2,2926.6,8.731]
[1766653973334,1.5799,2927.2,2926.0,0.00315405]
[1766653973634,1.5799,2927.2,2926.1,8.731]
[1766653974033,1.5799,2927.2,2926.0,0.00315405]
[1766653974230,1.5799,2927.2,2926.1,3.07]
[1766653977837,1.5799,2927.2,2926.0,0.00315405]
[1766653978036,1.5799,2927.2,2926.1,4.127]
[1766653981738,1.5799,2927.2,2926.0,0.00315405]
[1766653981938,1.5799,2927.2,2926.2,5.997]
[1766653985631,1.5799,2927.2,2926.0,0.00315405]
[1766653985836,1.5799,2927.2,2926.1,4.127]
[1766653986537,4.3139,2927.2,2926.2,8.73]
[1766653987040,4.3139,2927.2,2926.0,0.00315405]
[1766653987244,4.3139,2927.2,2926.0,2.73715405]
[1766653987943,5.43508876,2927.1,2926.0,0.00315405]
[1766653988147,4.466,2927.1,2926.0,2.73715405]
[1766653993248,2.734,2927.0,2926.0,2.73715405]
[1766653997753,1.5788,2926.9,2926.0,2.73715405]
[1766654000055,0.43520738,2926.9,2926.0,2.73715405]
[1766654000259,0.00512138,2927.3,2926.0,9.57415405]
[1766654004751,0.00512138,2927.3,2926.0,9.74514405]
[1766654020774,0.00512138,2927.3,2926.1,0.17099]
[1766654022368,0.00512138,2927.3,2926.1,1.32846477]
[1766654022770,0.00512138,2927.3,2926.2,0.17098]
[1766654022960,0.00512138,2927.3,2926.3,2.734]
[1766654023164,0.00512138,2927.3,2926.4,5.995]
[1766654025874,0.00328466,2927.9,2926.4,12.83]
[1766654026070,2.73728466,2927.9,2926.4,12.83]
[1766654026977,0.00512138,2927.4,2926.9,0.00512138]
[1766654027177,2.73728466,2927.9,2927.0,8.728]
[1766654028278,0.00512138,2927.7,2927.0,8.728]
[1766654044295,2.138e-05,2927.7,2927.0,8.728]
[1766654044494,0.00328466,2927.9,2927.0,8.728]
[1766654044689,2.733,2928.2,2927.0,8.728]
[1766654045401,0.00512138,2927.9,2927.0,8.728]
[1766654045590,0.00754388,2927.9,2927.0,8.728]
[1766654045792,2.733,2928.2,2927.0,8.728]
[1766654046006,2.733,2928.2,2927.0,8.89894]
[1766654046518,2.733,2928.5,2927.0,8.89894]
[1766654046807,0.00512138,2928.0,2927.0,8.89894]
[1766654068425,0.00512138,2928.0,2927.0,0.17094]
[1766654068624,0.00512138,2928.0,2927.1,15.557]
[1766654069426,0.00512138,2928.0,2927.0,0.17094]
[1766654069624,0.00512138,2928.0,2927.1,6.886]
[1766654069820,0.00512138,2928.0,2926.9,0.00512138]
[1766654070019,0.00512138,2928.0,2927.0,7.514]
[1766654107753,0.00512138,2928.0,2926.9,0.00512138]
[1766654107952,0.00512138,2928.0,2927.0,4.495]
[1766654118076,0.00512138,2928.0,2926.9,0.00512138]
[1766654118274,0.00512138,2928.0,2927.0,6.317]
[1766654120982,2.733,2927.9,2926.9,0.00512138]
[1766654121183,2.733,2927.9,2927.0,2.733]
[1766654130793,2.733,2927.9,2926.9,0.00512138]
[1766654146198,0.00512138,2928.0,2926.9,0.00512138]
[1766654146396,2.734,2927.9,2926.9,0.00512138]
[1766654148999,2.734,2927.9,2927.0,2.734]
[1766654149198,0.00512138,2928.0,2927.0,2.734]
[1766654149399,2.734,2927.9,2927.0,2.734]
[1766654161007,0.00512138,2928.0,2927.0,2.734]
[1766654161210,2.734,2927.9,2927.0,2.734]
[1766654161712,0.00512138,2928.0,2927.0,8.723]
[1766654161905,2.734,2928.2,2927.0,8.723]
[1766654162712,2.734,2928.2,2926.9,1.25683822]
[1766654163010,0.00512138,2927.8,2926.9,0.00512138]
[1766654163304,2.734,2927.7,2926.9,0.00512138]
[1766654171019,2.734,2927.7,2926.5,1.25592416]
[1766654171220,2.734,2927.7,2926.6,2.734]
[1766654172021,2.734,2927.7,2926.9,0.00512138]
[1766654172416,2.734,2927.7,2926.1,7.64995269]
[1766654172614,2.734,2927.7,2926.2,7.9698345]
[1766654173527,2.734,2927.7,2926.7,0.00512138]
[1766654173722,2.734,2927.7,2926.6,2.734]
[1766654173918,2.734,2927.7,2926.2,1.2528345]
[1766654174119,2.734,2927.7,2926.4,2.734]
[1766654174621,2.734,2927.7,2926.8,0.00512138]
[1766654176024,2.734,2927.7,2926.8,2.138e-05]
[1766654192134,2.734,2927.6,2926.8,2.73402138]
[1766654192527,4.42712138,2927.8,2926.8,2.73402138]
[1766654192528,8.829,2927.7,2926.8,2.73402138]
[1766654192729,0.00512138,2927.8,2926.8,2.73402138]
[1766654193029,8.83412138,2927.8,2926.8,2.73402138]
[1766654194023,0.00512138,2927.8,2926.8,2.73402138]
[1766654195638,0.00512138,2927.8,2926.8,8.11702138]
[1766654196840,2.138e-05,2927.8,2926.8,8.11702138]
[1766654200332,2.138e-05,2927.8,2926.8,9.3784488]
[1766654200539,2.734,2928.3,2926.8,9.5493988]
[1766654200730,0.00252878,2928.5,2926.8,9.5493988]
[1766654201137,2.73652878,2928.5,2926.8,9.5493988]
[1766654201641,0.00512138,2927.9,2926.8,9.5493988]
[1766654206438,2.73652878,2928.5,2926.8,9.5493988]
[1766654207442,0.00512138,2927.9,2926.8,9.5493988]
[1766654208847,2.73652878,2928.5,2926.9,0.17094]
[1766654209841,0.00512138,2928.0,2926.9,0.17094]
[1766654213142,0.00252878,2928.5,2927.0,0.17094]
[1766654213345,0.00252878,2928.5,2927.1,2.733]
[1766654214149,0.00512138,2928.1,2927.1,2.733]
[1766654214448,0.00252878,2928.5,2927.1,2.733]
[1766654215348,0.00339286,2928.1,2927.1,2.733]
[1766654219458,0.00252878,2928.5,2927.1,2.90393]
[1766654219953,0.00252878,2928.5,2927.4,0.17091]
[1766654220147,0.00252878,2928.5,2927.5,8.718]
[1766654228262,0.00252878,2928.5,2927.6,8.718]
[1766654228865,0.00252878,2928.5,2927.4,1.40872184]
[1766654229466,0.00252878,2928.5,2927.5,5.812]
[1766654229665,0.00252878,2928.5,2927.4,1.40872184]
[1766654229868,0.00252878,2928.5,2927.5,5.52]
[1766654245374,0.00252878,2928.5,2927.5,5.69091]
[1766654246572,0.05356,2928.8,2927.6,0.1709]
[1766654247665,0.05787764,2928.8,2927.6,0.1709]
[1766654252981,0.05787764,2928.8,2927.7,8.715]
[1766654253177,0.05787764,2928.8,2927.8,8.715]
[1766654254490,2.78987764,2928.8,2927.8,8.715]
[1766654255178,2.78987764,2928.8,2927.9,2.732]
[1766654261693,0.05787764,2928.8,2927.9,2.732]
[1766654271893,2.733,2929.4,2927.9,2.732]
[1766654272094,2.733,2929.4,2928.4,0.00512138]
[1766654272300,2.733,2929.4,2928.5,2.733]
[1766654273206,0.00319603,2929.4,2928.5,2.73650327]
[1766654273504,2.733,2929.3,2928.5,2.73650327]
[1766654281107,0.00319603,2929.4,2928.5,2.73650327]
[1766654281407,2.732,2929.3,2928.5,2.73650327]
[1766654282295,0.00319603,2929.4,2928.5,2.73650327]
[1766654284710,2.732,2929.8,2928.5,2.73650327]
[1766654284913,2.732,2929.9,2928.5,2.73650327]
[1766654285714,2.73469549,2929.9,2928.5,2.73650327]
[1766654288107,0.00269549,2929.9,2928.6,8.713]
[1766654288303,2.73469549,2929.9,2928.6,8.713]
[1766654296020,2.73469549,2929.9,2928.5,0.00350327]
[1766654296222,2.73469549,2929.9,2928.7,5.98]
[1766654301624,0.00269549,2929.9,2928.7,5.98]
[1766654304531,0.00269549,2929.9,2928.7,7.16101977]
[1766654312429,0.00269549,2929.9,2928.8,5.979]
[1766654312635,0.00269549,2929.9,2928.9,2.732]
[1766654319333,0.00269549,2929.9,2928.7,1.18101977]
[1766654319536,0.00269549,2929.9,2928.8,8.711]
[1766654333951,2.732,2930.1,2928.8,8.711]
[1766654334951,2.73489308,2930.1,2928.8,8.711]
[1766654339158,0.00289308,2930.1,2928.8,8.711]
[1766654339458,2.732,2930.4,2928.8,8.88183]
[1766654340553,0.00395543,2930.4,2928.8,8.88183]
[1766654340760,0.00395543,2930.4,2928.9,3.7144342]
[1766654340945,0.00395543,2930.4,2928.9,3.8852642]
[1766654347159,0.00395543,2930.4,2929.0,15.537]
[1766654355458,0.00395543,2930.4,2929.0,15.70782]
[1766654356058,0.00395543,2930.4,2929.2,0.17081]
[1766654356263,2.731,2931.0,2929.3,8.8928]
[1766654356459,2.731,2931.0,2929.9,0.00512138]
[1766654356763,2.731,2931.0,2930.0,8.722]
[1766654357164,2.73346671,2931.0,2930.0,8.722]
[1766654361767,2.73346671,2931.0,2929.9,0.00512138]
[1766654361958,2.73346671,2931.0,2930.0,8.463]
[1766654362159,2.73346671,2931.0,2930.0,8.3634]
[1766654362358,2.73346671,2931.0,2930.0,8.2638]
[1766654366773,0.00246671,2931.0,2930.0,8.2638]
[1766654366975,2.731,2930.9,2930.0,8.2638]
[1766654367874,2.73346671,2931.0,2930.0,8.2638]
[1766654369068,2.731,2931.4,2930.0,9.52276094]
[1766654369874,0.17066,2931.8,2930.0,9.52276094]
[1766654370075,3.69405562,2931.7,2930.0,9.49536273]
[1766654370275,2.731,2931.7,2930.0,9.49536273]
[1766654371271,0.1744144,2931.8,2930.0,9.50123566]
[1766654371474,3.69356667,2931.7,2930.0,9.50123566]
[1766654371672,2.731,2931.7,2930.0,9.50123566]
[1766654372179,2.731,2931.7,2930.0,8.2638]
[1766654372370,0.0037544,2931.8,2930.0,8.2638]
[1766654372566,2.7347544,2931.8,2930.1,6.828]
[1766654380181,2.7347544,2931.8,2930.2,8.718]
[1766654380677,2.7347544,2931.8,2930.2,5.988]
[1766654380874,2.7347544,2931.8,2930.3,8.718]
[1766654381076,1.1262111,2931.7,2930.2,8.718]
[1766654381275,0.9555411,2931.6,2930.2,8.718]
[1766654381475,2.73,2931.5,2930.2,8.718]
[1766654381675,3.48,2931.4,2930.2,8.718]
[1766654384285,3.48,2931.4,2930.0,1.2345204]
[1766654384487,3.48,2931.4,2930.1,8.718]
[1766654385890,0.17067,2931.7,2930.1,8.718]
[1766654386090,4.42,2931.6,2930.1,8.718]
[1766654389578,0.0037544,2931.8,2930.1,8.718]
[1766654389786,3.68641838,2931.7,2930.1,8.718]
[1766654389983,2.73,2931.7,2930.1,8.718]
[1766654390788,2.73,2931.7,2930.0,1.22693816]
[1766654390990,2.73,2931.7,2930.1,15.545]
[1766654393995,0.0037544,2931.8,2930.1,15.545]
[1766654394195,2.73,2931.7,2930.1,15.545]
[1766654395695,0.0037544,2931.8,2930.1,15.545]
[1766654395992,2.73,2931.7,2930.1,15.545]
[1766654398290,0.0037544,2931.8,2930.1,15.545]
[1766654398486,2.73,2931.7,2930.1,15.545]
[1766654399494,2.73,2931.7,2930.1,15.71576]
[1766654400191,2.73,2931.7,2930.2,3.63742295]
[1766654403299,2.73,2931.7,2930.1,15.71576]
[1766654403495,2.73,2931.7,2930.1,0.17076]
[1766654403693,2.73,2931.7,2930.2,8.717]
[1766654404094,2.73,2931.7,2930.3,8.717]
[1766654404502,2.73,2931.7,2930.1,0.17076]
[1766654404703,0.95698347,2931.6,2930.2,8.515]
[1766654404896,2.90066,2931.7,2930.2,8.515]
[1766654405096,0.95699172,2931.6,2930.2,8.515]
[1766654405301,2.90066,2931.7,2930.2,8.515]
[1766654405499,0.95700283,2931.6,2930.2,8.515]
[1766654405701,2.90066,2931.7,2930.2,8.515]
[1766654405904,0.95700285,2931.6,2930.2,8.515]
[1766654406114,2.90066,2931.7,2930.2,8.515]
[1766654406407,0.95700776,2931.6,2929.9,0.00512138]
[1766654406706,0.95703936,2931.5,2930.0,6.831]
[1766654406898,3.68703936,2931.4,2930.0,6.831]
[1766654407099,2.592,2931.3,2930.0,6.831]
[1766654433330,0.95810757,2931.2,2930.0,6.831]
[1766654433630,2.731,2931.1,2930.0,6.831]
[1766654437128,2.731,2931.1,2930.1,2.731]
[1766654457343,2.731,2931.1,2929.9,0.00512138]
[1766654457546,2.731,2931.1,2930.0,2.731]
[1766654461341,6.069,2931.2,2930.0,2.731]
[1766654461547,2.731,2931.1,2930.0,2.731]
[1766654476453,6.23769,2931.3,2930.0,2.731]
[1766654476656,0.9586916,2931.2,2930.0,2.731]
[1766654476857,2.731,2931.3,2930.0,2.731]
[1766654481255,0.0037544,2931.8,2930.0,2.731]
[1766654481461,3.68851795,2931.7,2930.0,9.558]
[1766654481660,0.95751795,2931.6,2930.0,9.558]
[1766654481961,2.731,2931.7,2930.0,9.558]
[1766654482261,0.95751775,2931.6,2930.0,9.558]
[1766654482462,2.731,2931.7,2930.0,9.558]
[1766654482663,0.95737283,2931.6,2930.0,9.558]
[1766654482858,2.731,2931.7,2930.0,9.558]
[1766654483059,0.95737249,2931.6,2930.0,9.558]
[1766654483251,2.731,2931.7,2930.0,9.558]
[1766654483456,0.95725244,2931.6,2930.0,9.558]
[1766654483751,2.731,2931.7,2930.0,9.558]
[1766654483959,0.95725244,2931.6,2930.0,9.558]
[1766654484255,2.731,2931.7,2930.0,9.558]
[1766654486561,2.731,2931.7,2930.0,10.96225101]
[1766654486953,2.731,2931.7,2930.2,0.17075]
[1766654487165,2.731,2931.7,2930.3,8.714]
[1766654487559,2.731,2931.7,2930.3,8.88474]
[1766654489266,3.55186115,2932.2,2930.5,0.17073]
[1766654489467,3.55186115,2932.2,2930.6,2.73]
[1766654490163,3.55619964,2932.2,2930.6,0.00244297]
[1766654490558,3.55619964,2932.2,2930.7,3.598]
[1766654490869,3.55619964,2932.2,2930.6,0.00244297]
[1766654491070,0.95569144,2932.1,2930.7,2.73]
[1766654491366,0.95569144,2932.0,2930.7,2.73]
[1766654491567,8.795,2931.9,2930.7,2.73]
[1766654500969,6.064,2931.8,2930.7,2.73]
[1766654501176,8.794,2931.8,2930.7,2.73]
[1766654509976,8.794,2931.8,2930.6,0.00244297]
[1766654510179,8.794,2931.8,2930.8,2.73]
[1766654511386,8.793,2931.7,2930.8,2.73]
[1766654513587,0.17064,2932.1,2930.8,2.73]
[1766654513788,9.75081195,2932.0,2930.8,2.73]
[1766654513992,0.95781195,2931.9,2930.8,2.73]
[1766654514189,8.793,2932.0,2930.8,2.73]
[1766654514391,0.95787065,2931.9,2930.8,2.73]
[1766654514591,8.793,2932.0,2930.8,2.73]
[1766654514890,0.95787066,2931.9,2930.8,2.73]
[1766654515094,8.793,2932.0,2930.8,2.73]
[1766654515391,0.95793943,2931.9,2930.8,2.73]
[1766654515592,8.793,2932.0,2930.8,2.73]
[1766654515789,0.95793942,2931.9,2930.8,2.73]
[1766654516087,8.793,2932.0,2930.8,2.73]
[1766654516287,0.9580213,2931.9,2930.8,2.73]
[1766654516487,8.793,2932.0,2930.8,2.73]
[1766654516688,0.9580213,2931.9,2930.8,2.73]
[1766654516985,8.793,2932.0,2930.8,2.73]
[1766654517189,0.95802122,2931.9,2930.8,2.73]
[1766654517389,8.793,2932.0,2930.8,2.73]
[1766654517694,0.95804699,2931.9,2930.8,2.73]
[1766654517889,8.793,2932.0,2930.8,2.73]
[1766654518091,0.95804696,2931.9,2930.8,2.73]